fUST/lending_fUST_20241225
["ID","MTS","AMOUNT","RATE_DAILY","PERIOD"]
[346558820,1735086647268,-287.674482,0.00013972,2]
[346558821,1735086647278,-287.674482,0.00013972,2]
[346558822,1735086647288,-287.674482,0.00013972,2]
[346558823,1735086647298,-287.674482,0.00013972,2]
[346558824,1735086647308,-500.0,0.00013972,2]
[346558825,1735086647318,-287.674482,0.00013972,2]
[346558826,1735086647327,-287.674482,0.00013972,2]
[346558827,1735086647337,-154.06319,0.00013972,2]
[346558828,1735086647346,-287.674482,0.00013972,2]
[346558829,1735086647357,-287.674482,0.00013972,2]
[346558830,1735086647366,-500.0,0.00013972,2]
[346558831,1735086647376,-500.0,0.00013972,2]
[346558832,1735086647387,-500.0,0.00013972,2]
[346558834,1735086647396,-500.0,0.00013972,2]
[346558836,1735086647407,-500.0,0.00013972,2]
[346558837,1735086647416,-936.95,0.00013972,2]
[346558838,1735086647425,-500.0,0.00013972,2]
[346558839,1735086647435,-151.0,0.00013972,2]
[346558840,1735086647444,-151.0,0.00013972,2]
[346558841,1735086647454,-151.0,0.00013972,2]
[346558842,1735086647463,-151.0,0.00013972,2]
[346558843,1735086647473,-500.0,0.00013972,2]
[346558844,1735086647483,-500.0,0.00013972,2]
[346558845,1735086647492,-833.23,0.00013972,2]
[346558846,1735086647502,-500.0,0.00013972,2]
[346558847,1735086647512,-970.0,0.00013972,2]
[346558848,1735086647522,-970.0,0.00013972,2]
[346558849,1735086647532,-970.0,0.00013972,2]
[346558850,1735086647541,-970.0,0.00013972,2]
[346558851,1735086647551,-970.0,0.00013972,2]
[346558852,1735086647559,-970.0,0.00013972,2]
[346558853,1735086647569,-970.0,0.00013972,2]
[346558854,1735086647579,-241.63396,0.00013972,2]
[346558855,1735086647589,-566.1804183,0.00013972,2]
[346558856,1735086647599,-500.0,0.00013972,2]
[346558857,1735086647608,-500.0,0.00013972,2]
[346558858,1735086647618,-500.0,0.00013972,2]
[346558859,1735086647627,-500.0,0.00013972,2]
[346558860,1735086647636,-500.0,0.00013972,2]
[346558861,1735086647646,-500.0,0.00013972,2]
[346558862,1735086647656,-500.0,0.00013972,2]
[346558863,1735086647665,-500.0,0.00013972,2]
[346558864,1735086647674,-500.0,0.00013972,2]
[346558865,1735086647684,-473.65150385,0.00013972,2]
[346558866,1735086647693,-500.0,0.00013972,2]
[346558867,1735086647703,-500.0,0.00013972,2]
[346558868,1735086647712,-500.0,0.00013972,2]
[346558869,1735086647722,-500.0,0.00013972,2]
[346558870,1735086647731,-626.77811185,0.00013972,2]
[346558871,1735086647741,-383.8615723,0.00013972,2]
[346558872,1735086647750,-500.0,0.00013972,2]
[346558873,1735086647760,-500.0,0.00013972,2]
[346558874,1735086647770,-500.0,0.00013972,2]
[346558875,1735086647780,-500.0,0.00013972,2]
[346558876,1735086647789,-514.04027,0.00013972,2]
[346558877,1735086647798,-514.04027,0.00013972,2]
[346558878,1735086647808,-514.04027,0.00013972,2]
[346558879,1735086647818,-500.0,0.00013972,2]
[346558880,1735086647827,-500.0,0.00013972,2]
[346558881,1735086647837,-500.0,0.00013972,2]
[346558882,1735086647847,-500.0,0.00013972,2]
[346558883,1735086647857,-500.0,0.00013972,2]
[346558884,1735086647867,-500.0,0.00013972,2]
[346558885,1735086647876,-500.0,0.00013972,2]
[346558886,1735086647886,-500.0,0.00013972,2]
[346558887,1735086647895,-151.0,0.00013972,2]
[346558888,1735086647905,-727.92,0.00013972,2]
[346558889,1735086647914,-151.0,0.00013972,2]
[346558890,1735086647923,-151.0,0.00013972,2]
[346558891,1735086647932,-151.0,0.00013972,2]
[346558892,1735086647942,-151.0,0.00013972,2]
[346558893,1735086647951,-151.0,0.00013972,2]
[346558894,1735086647961,-500.0,0.00013972,2]
[346558895,1735086647970,-864.92652,0.00013972,2]
[346558896,1735086647980,-864.92652,0.00013972,2]
[346558897,1735086647990,-864.92652,0.00013972,2]
[346558898,1735086647999,-864.92652,0.00013972,2]
[346558899,1735086648009,-864.92652,0.00013972,2]
[346558900,1735086648021,-864.92652,0.00013972,2]
[346558901,1735086648030,-864.92652,0.00013972,2]
[346558902,1735086648041,-926.37,0.00013972,2]
[346558903,1735086648052,-308.403845,0.00013972,2]
[346558904,1735086648065,-864.92652,0.00013972,2]
[346558905,1735086648075,-308.403845,0.00013972,2]
[346558906,1735086648084,-864.92652,0.00013972,2]
[346558907,1735086648095,-308.403845,0.00013972,2]
[346558908,1735086648106,-864.92652,0.00013972,2]
[346558909,1735086648116,-308.403845,0.00013972,2]
[346558910,1735086648125,-864.92652,0.00013972,2]
[346558911,1735086648138,-308.403845,0.00013972,2]
[346558912,1735086648148,-864.92652,0.00013972,2]
[346558913,1735086648158,-308.403845,0.00013972,2]
[346558914,1735086648167,-864.92652,0.00013972,2]
[346558915,1735086648178,-864.92652,0.00013972,2]
[346558916,1735086648188,-500.0,0.00013972,2]
[346558917,1735086648198,-308.403845,0.00013972,2]
[346558918,1735086648208,-308.403845,0.00013972,2]
[346558919,1735086648218,-308.403845,0.00013972,2]
[346558920,1735086648228,-308.403845,0.00013972,2]
[346558921,1735086648238,-299.987954,0.00013972,2]
[346558922,1735086648247,-308.403845,0.00013972,2]
[346558923,1735086648257,-299.987954,0.00013972,2]
[346558924,1735086648269,-308.403845,0.00013972,2]
[346558925,1735086648278,-299.987954,0.00013972,2]
[346558926,1735086648289,-299.987954,0.00013972,2]
[346558927,1735086648299,-299.987954,0.00013972,2]
[346558928,1735086648309,-299.987954,0.00013972,2]
[346558929,1735086648319,-299.987954,0.00013972,2]
[346558930,1735086648330,-150.09,0.00013972,2]
[346558931,1735086648340,-1893.4,0.00013972,2]
[346558932,1735086648350,-150.14,0.00013972,2]
[346558933,1735086648361,-150.51871937,0.00013972,2]
[346558934,1735086648371,-503.6,0.00013972,2]
[346558935,1735086648381,-151.951626,0.00013972,2]
[346558936,1735086648392,-151.951626,0.00013972,2]
[346558937,1735086648402,-500.0,0.00013972,2]
[346558938,1735086648412,-151.951626,0.00013972,2]
[346558939,1735086648422,-151.951626,0.00013972,2]
[346558940,1735086648431,-150.09,0.00013972,2]
[346558941,1735086648441,-151.951626,0.00013972,2]
[346558942,1735086648450,-151.951626,0.00013972,2]
[346558943,1735086648459,-151.951626,0.00013972,2]
[346558944,1735086648469,-151.951626,0.00013972,2]
[346558945,1735086648479,-151.951626,0.00013972,2]
[346558946,1735086648488,-151.951626,0.00013972,2]
[346558947,1735086648498,-500.0,0.00013972,2]
[346558948,1735086648507,-151.951626,0.00013972,2]
[346558949,1735086648519,-151.951626,0.00013972,2]
[346558950,1735086648528,-500.0,0.00013972,2]
[346558951,1735086648538,-500.0,0.00013972,2]
[346558952,1735086648652,-500.0,0.00013972,2]
[346558953,1735086648662,-970.93,0.00013972,2]
[346558954,1735086648672,-500.0,0.00013972,2]
[346558955,1735086648681,-500.0,0.00013972,2]
[346558956,1735086648692,-500.0,0.00013972,2]
[346558957,1735086648702,-500.0,0.00013972,2]
[346558958,1735086648712,-500.0,0.00013972,2]
[346558959,1735086648721,-500.0,0.00013972,2]
[346558960,1735086648730,-500.0,0.00013972,2]
[346558961,1735086648740,-440.66139914,0.00013972,2]
[346558962,1735086648750,-1490.47,0.00013972,2]
[346558963,1735086648760,-500.0,0.00013972,2]
[346558964,1735086648770,-500.0,0.00013972,2]
[346558965,1735086648780,-500.0,0.00013972,2]
[346558966,1735086648790,-151.0,0.00013972,2]
[346558967,1735086648800,-500.0,0.00013972,2]
[346558968,1735086648810,-1498.23,0.00013972,2]
[346558969,1735086648820,-500.0,0.00013972,2]
[346558970,1735086648831,-500.0,0.00013972,2]
[346558971,1735086648841,-151.0,0.00013972,2]
[346558972,1735086648851,-151.0,0.00013972,2]
[346558973,1735086648861,-154.515049,0.00013972,2]
[346558974,1735086648871,-500.0,0.00013972,2]
[346558975,1735086648881,-1305.58,0.00013972,2]
[346558976,1735086648891,-500.0,0.00013972,2]
[346558977,1735086648901,-500.0,0.00013972,2]
[346558978,1735086648911,-500.0,0.00013972,2]
[346558979,1735086648921,-500.0,0.00013972,2]
[346558980,1735086648932,-151.0,0.00013972,2]
[346558981,1735086648942,-151.0,0.00013972,2]
[346558982,1735086648952,-151.0,0.00013972,2]
[346558983,1735086648962,-151.0,0.00013972,2]
[346558984,1735086648971,-151.0,0.00013972,2]
[346558985,1735086648981,-151.0,0.00013972,2]
[346558986,1735086648991,-151.0,0.00013972,2]
[346558987,1735086649001,-802.136166,0.00013972,2]
[346558988,1735086649011,-851.12,0.00013972,2]
[346558989,1735086649023,-500.0,0.00013972,2]
[346558990,1735086649033,-500.0,0.00013972,2]
[346558991,1735086649044,-500.0,0.00013972,2]
[346558992,1735086649056,-500.0,0.00013972,2]
[346558993,1735086649068,-500.0,0.00013972,2]
[346558994,1735086649078,-560.57,0.00013972,2]
[346558995,1735086649088,-500.0,0.00013972,2]
[346558996,1735086649099,-784.59,0.00013972,2]
[346558997,1735086649109,-1587.6,0.00013972,2]
[346558998,1735086649120,-2890.26,0.00013972,2]
[346558999,1735086649130,-500.0,0.00013972,2]
[346559000,1735086649142,-648.07,0.00013972,2]
[346559001,1735086649153,-500.0,0.00013972,2]
[346559002,1735086649163,-549.30352517,0.00013972,2]
[346559003,1735086649172,-500.0,0.00013972,2]
[346559004,1735086649182,-751.34,0.00013972,2]
[346559005,1735086649193,-500.0,0.00013972,2]
[346559006,1735086649202,-1409.8,0.00013972,2]
[346559007,1735086649212,-500.0,0.00013972,2]
[346559008,1735086649222,-1417.1,0.00013972,2]
[346559009,1735086649232,-500.0,0.00013972,2]
[346559010,1735086649242,-500.0,0.00013972,2]
[346559011,1735086649252,-500.0,0.00013972,2]
[346559012,1735086649263,-1049.36,0.00013972,2]
[346559013,1735086649272,-599.01,0.00013972,2]
[346559014,1735086649282,-500.0,0.00013972,2]
[346559015,1735086649292,-1000.0,0.00013972,2]
[346559016,1735086649302,-500.0,0.00013972,2]
[346559017,1735086649314,-500.0,0.00013972,2]
[346559018,1735086649324,-500.0,0.00013972,2]
[346559019,1735086649334,-500.0,0.00013972,2]
[346559020,1735086649344,-718.89,0.00013972,2]
[346559021,1735086649354,-500.0,0.00013972,2]
[346559022,1735086649364,-500.0,0.00013972,2]
[346559023,1735086649374,-1591.46,0.00013972,2]
[346559024,1735086649384,-500.0,0.00013972,2]
[346559025,1735086649394,-971.96,0.00013972,2]
[346559026,1735086649405,-500.0,0.00013972,2]
[346559027,1735086649415,-517.23647771,0.00013972,2]
[346559028,1735086649425,-857.66,0.00013972,2]
[346559029,1735086649435,-2713.68,0.00013972,2]
[346559030,1735086649446,-500.0,0.00013972,2]
[346559031,1735086649457,-500.0,0.00013972,2]
[346559032,1735086649468,-789.99,0.00013972,2]
[346559033,1735086649478,-1176.59884,0.00013972,2]
[346559034,1735086649488,-1176.59884,0.00013972,2]
[346559035,1735086649498,-1176.59884,0.00013972,2]
[346559036,1735086649510,-1176.59884,0.00013972,2]
[346559037,1735086649522,-1176.59884,0.00013972,2]
[346559038,1735086649532,-1176.59884,0.00013972,2]
[346559039,1735086649542,-1176.59884,0.00013972,2]
[346559040,1735086649552,-500.0,0.00013972,2]
[346559041,1735086649562,-1176.59884,0.00013972,2]
[346559042,1735086649572,-1176.59884,0.00013972,2]
[346559043,1735086649582,-500.0,0.00013972,2]
[346559044,1735086649592,-1176.59884,0.00013972,2]
[346559045,1735086649601,-1176.59884,0.00013972,2]
[346559046,1735086649611,-1176.59884,0.00013972,2]
[346559047,1735086649621,-1176.59884,0.00013972,2]
[346559048,1735086649630,-500.0,0.00013972,2]
[346559049,1735086649640,-1176.598838,0.00013972,2]
[346559050,1735086649649,-500.0,0.00013972,2]
[346559051,1735086649659,-500.0,0.00013972,2]
[346559052,1735086649668,-683.14,0.00013972,2]
[346559053,1735086649678,-500.0,0.00013972,2]
[346559054,1735086649687,-500.0,0.00013972,2]
[346559055,1735086649697,-500.0,0.00013972,2]
[346559056,1735086649707,-201.51053711,0.00013972,2]
[346559057,1735086649716,-500.0,0.00013972,2]
[346559058,1735086649725,-500.0,0.00013972,2]
[346559059,1735086649735,-500.0,0.00013972,2]
[346559060,1735086649744,-500.0,0.00013972,2]
[346559061,1735086649754,-500.0,0.00013972,2]
[346559062,1735086649764,-500.0,0.00013972,2]
[346559063,1735086649773,-500.0,0.00013972,2]
[346559064,1735086649782,-500.0,0.00013972,2]
[346559065,1735086649792,-500.0,0.00013972,2]
[346559066,1735086649801,-500.0,0.00013972,2]
[346559067,1735086649811,-500.0,0.00013972,2]
[346559068,1735086649820,-980.04,0.00013972,2]
[346559069,1735086649829,-493.3280801,0.00013972,2]
[346559070,1735086649839,-1384.93,0.00013972,2]
[346559071,1735086649848,-500.0,0.00013972,2]
[346559072,1735086649858,-500.0,0.00013972,2]
[346559073,1735086649867,-500.0,0.00013972,2]
[346559074,1735086649876,-500.0,0.00013972,2]
[346559075,1735086649886,-500.0,0.00013972,2]
[346559076,1735086649895,-1629.73,0.00013972,2]
[346559077,1735086649905,-660.3562,0.00013972,2]
[346559078,1735086649914,-660.3562,0.00013972,2]
[346559079,1735086649923,-660.3562,0.00013972,2]
[346559080,1735086649933,-660.3562,0.00013972,2]
[346559081,1735086649943,-660.3562,0.00013972,2]
[346559082,1735086649952,-660.3562,0.00013972,2]
[346559083,1735086649962,-552.61108884,0.00013972,2]
[346559084,1735086649972,-660.3562,0.00013972,2]
[346559085,1735086649981,-660.3562,0.00013972,2]
[346559086,1735086649991,-660.3562,0.00013972,2]
[346559087,1735086650001,-660.3562,0.00013972,2]
[346559088,1735086650011,-660.3562,0.00013972,2]
[346559089,1735086650020,-660.3562,0.00013972,2]
[346559090,1735086650030,-500.0,0.00013972,2]
[346559091,1735086650040,-500.0,0.00013972,2]
[346559092,1735086650049,-500.0,0.00013972,2]
[346559093,1735086650064,-500.0,0.00013972,2]
[346559094,1735086650073,-500.0,0.00013972,2]
[346559095,1735086650084,-500.0,0.00013972,2]
[346559096,1735086650094,-500.0,0.00013972,2]
[346559097,1735086650106,-1021.25,0.00013972,4]
[346559098,1735086650115,-500.0,0.00013972,2]
[346559099,1735086650127,-500.0,0.00013972,2]
[346559100,1735086650137,-500.0,0.00013972,2]
[346559101,1735086650147,-500.0,0.00013972,2]
[346559102,1735086650156,-2749.84,0.00013972,2]
[346559103,1735086650165,-500.0,0.00013972,2]
[346559104,1735086650175,-583.07,0.00013972,2]
[346559105,1735086650185,-588.98,0.00013972,2]
[346559106,1735086650193,-500.0,0.00013972,2]
[346559107,1735086650202,-500.0,0.00013972,2]
[346559108,1735086650212,-500.0,0.00013972,2]
[346559109,1735086650221,-1178.28,0.00013972,2]
[346559110,1735086650231,-500.0,0.00013972,2]
[346559111,1735086650241,-151.0,0.00013972,2]
[346559112,1735086650250,-151.0,0.00013972,2]
[346559113,1735086650259,-151.0,0.00013972,2]
[346559114,1735086650270,-3384.92,0.00013972,2]
[346559115,1735086650279,-151.0,0.00013972,2]
[346559116,1735086650289,-151.0,0.00013972,2]
[346559117,1735086650299,-151.0,0.00013972,2]
[346559118,1735086650308,-426.188143,0.00013972,2]
[346559119,1735086650317,-186.65639402,0.00013972,2]
[346559120,1735086650326,-426.188143,0.00013972,2]
[346559121,1735086650334,-426.188143,0.00013972,2]
[346559122,1735086650343,-500.0,0.00013972,2]
[346559123,1735086650353,-426.188143,0.00013972,2]
[346559124,1735086650363,-426.188143,0.00013972,2]
[346559125,1735086650373,-426.188143,0.00013972,2]
[346559126,1735086650383,-426.188143,0.00013972,2]
[346559127,1735086650392,-426.188143,0.00013972,2]
[346559128,1735086650497,-426.188143,0.00013972,2]
[346559129,1735086650507,-426.188143,0.00013972,2]
[346559130,1735086650517,-426.188143,0.00013972,2]
[346559131,1735086650526,-426.188135,0.00013972,2]
[346559132,1735086650536,-581.95721916,0.00013972,2]
[346559133,1735086650546,-891.61,0.00013972,2]
[346559134,1735086650555,-500.0,0.00013972,2]
[346559135,1735086650565,-500.0,0.00013972,2]
[346559136,1735086650575,-500.0,0.00013972,2]
[346559137,1735086650585,-502.89095567,0.00013972,2]
[346559138,1735086650594,-500.0,0.00013972,2]
[346559139,1735086650604,-500.0,0.00013972,2]
[346559140,1735086650614,-314.49,0.00013972,2]
[346559141,1735086650623,-500.0,0.00013972,2]
[346559142,1735086650633,-500.0,0.00013972,2]
[346559143,1735086650643,-6382.55,0.00013972,2]
[346559144,1735086650653,-501.93353831,0.00013972,2]
[346559145,1735086650663,-983.51,0.00013972,2]
[346559146,1735086650673,-500.0,0.00013972,2]
[346559147,1735086650682,-3792.68,0.00013972,2]
[346559148,1735086650691,-500.0,0.00013972,2]
[346559149,1735086650701,-505.5240648,0.00013972,2]
[346559150,1735086650711,-500.0,0.00013972,2]
[346559151,1735086650720,-867.61,0.00013972,2]
[346559152,1735086650728,-2235.76,0.00013972,2]
[346559153,1735086650737,-548.26208737,0.00013972,2]
[346559154,1735086651029,-602.21442848,0.00013972,2]
[346559155,1735086651549,-315.28889535,0.00013698,2]
[346559156,1735086651562,-587.91535034,0.00013698,2]
[346559157,1735086652114,-210.22575431,0.00013698,2]
[346559158,1735086652124,-500.0,0.00013698,2]
[346559159,1735086652135,-150.0,0.00013949,2]
[346559160,1735086652145,-3141.41348415,0.00013972,2]
[346559161,1735086652155,-500.0,0.00013972,2]
[346559162,1735086652164,-500.0,0.00013972,2]
[346559163,1735086652174,-500.0,0.00013972,2]
[346559164,1735086652185,-400.87187481,0.00013972,2]
[346559165,1735086652197,-617.53812519,0.00013972,2]
[346559166,1735086652208,-1015.16,0.00013972,2]
[346559167,1735086652218,-150.09,0.00013972,2]
[346559168,1735086652227,-1392.25,0.00013972,2]
[346559169,1735086652237,-500.0,0.00013972,2]
[346559170,1735086652247,-779.77,0.00013972,2]
[346559171,1735086652256,-150.09,0.00013972,2]
[346559172,1735086652268,-901.9,0.00013972,2]
[346559173,1735086652277,-500.0,0.00013972,2]
[346559174,1735086652287,-150.14969723,0.00013972,2]
[346559175,1735086652296,-150.21054832,0.00013972,2]
[346559176,1735086652306,-150.11423967,0.00013972,2]
[346559177,1735086652316,-500.0,0.00013972,2]
[346559178,1735086652326,-2946.46,0.00013972,2]
[346559179,1735086652336,-1267.06,0.00013972,2]
[346559180,1735086652345,-500.0,0.00013972,2]
[346559181,1735086652354,-259.195081,0.00013972,2]
[346559182,1735086652365,-259.195081,0.00013972,2]
[346559183,1735086652375,-259.195081,0.00013972,2]
[346559184,1735086652385,-259.195081,0.00013972,2]
[346559185,1735086652395,-259.195081,0.00013972,2]
[346559186,1735086652405,-259.195081,0.00013972,2]
[346559187,1735086652415,-500.0,0.00013972,2]
[346559188,1735086652425,-259.195081,0.00013972,2]
[346559189,1735086652434,-259.195081,0.00013972,2]
[346559190,1735086652444,-259.195081,0.00013972,2]
[346559191,1735086652453,-259.195077,0.00013972,2]
[346559192,1735086652463,-644.53,0.00013972,2]
[346559193,1735086652473,-500.0,0.00013972,2]
[346559194,1735086652482,-500.0,0.00013972,2]
[346559195,1735086652490,-346.98308,0.00013972,2]
[346559196,1735086652500,-346.98308,0.00013972,2]
[346559197,1735086652509,-346.98308,0.00013972,2]
[346559198,1735086652522,-346.98308,0.00013972,2]
[346559199,1735086652533,-346.98308,0.00013972,2]
[346559200,1735086652544,-500.0,0.00013972,2]
[346559201,1735086652554,-346.98308,0.00013972,2]
[346559202,1735086652566,-1261.89,0.00013972,2]
[346559203,1735086652576,-500.0,0.00013972,2]
[346559204,1735086652586,-346.98308,0.00013972,2]
[346559205,1735086652596,-1437.35,0.00013972,2]
[346559206,1735086652606,-346.98308,0.00013972,2]
[346559207,1735086652626,-346.98308,0.00013972,2]
[346559208,1735086652644,-346.98308,0.00013972,2]
[346559209,1735086652661,-346.98308,0.00013972,2]
[346559210,1735086652680,-346.983074,0.00013972,2]
[346559211,1735086652699,-500.0,0.00013972,2]
[346559212,1735086652718,-599.92,0.00013972,2]
[346559213,1735086652735,-180.235358,0.00013972,2]
[346559214,1735086652753,-180.235358,0.00013972,2]
[346559215,1735086652767,-180.235358,0.00013972,2]
[346559216,1735086652781,-180.235358,0.00013972,2]
[346559217,1735086652801,-180.235358,0.00013972,2]
[346559218,1735086652819,-500.0,0.00013972,2]
[346559219,1735086652838,-180.235358,0.00013972,2]
[346559220,1735086652850,-151.0,0.00013972,2]
[346559221,1735086652864,-151.0,0.00013972,2]
[346559222,1735086652881,-151.0,0.00013972,2]
[346559223,1735086652895,-151.0,0.00013972,2]
[346559224,1735086652910,-151.0,0.00013972,2]
[346559225,1735086652921,-180.235358,0.00013972,2]
[346559226,1735086652936,-180.235358,0.00013972,2]
[346559227,1735086652951,-180.235358,0.00013972,2]
[346559228,1735086652966,-769.64,0.00013972,2]
[346559229,1735086652980,-180.235358,0.00013972,2]
[346559230,1735086652996,-180.235358,0.00013972,2]
[346559231,1735086653011,-180.235368,0.00013972,2]
[346559232,1735086653027,-500.0,0.00013972,2]
[346559233,1735086653041,-500.0,0.00013972,2]
[346559234,1735086653057,-3333.73,0.00013972,2]
[346559235,1735086653073,-500.0,0.00013972,2]
[346559236,1735086653087,-737.68,0.00013972,2]
[346559237,1735086653102,-1179.141143,0.00013972,2]
[346559238,1735086653117,-1179.141143,0.00013972,2]
[346559239,1735086653131,-1179.141143,0.00013972,2]
[346559240,1735086653146,-1179.141143,0.00013972,2]
[346559241,1735086653160,-1179.141143,0.00013972,2]
[346559242,1735086653174,-500.0,0.00013972,2]
[346559243,1735086653189,-1179.141143,0.00013972,2]
[346559244,1735086653203,-1179.141143,0.00013972,2]
[346559245,1735086653217,-1179.141143,0.00013972,2]
[346559246,1735086653232,-1179.141143,0.00013972,2]
[346559247,1735086653245,-1179.141134,0.00013972,2]
[346559248,1735086653260,-2870.31,0.00013972,2]
[346559249,1735086653273,-1428.92,0.00013972,2]
[346559250,1735086653288,-1577.48,0.00013972,2]
[346559251,1735086653301,-500.0,0.00013972,2]
[346559252,1735086653317,-500.0,0.00013972,2]
[346559253,1735086653332,-500.0,0.00013972,2]
[346559254,1735086653346,-249.04415472,0.00013972,2]
[346559255,1735086653360,-500.0,0.00013972,2]
[346559256,1735086653375,-1375.09,0.00013972,2]
[346559257,1735086653389,-500.0,0.00013972,2]
[346559258,1735086653403,-500.0,0.00013972,2]
[346559259,1735086653418,-927.37,0.00013972,2]
[346559260,1735086653428,-502.33478179,0.00013972,2]
[346559261,1735086653438,-1140.17,0.00013972,2]
[346559262,1735086653448,-500.0,0.00013972,2]
[346559263,1735086653457,-500.0,0.00013972,2]
[346559264,1735086653467,-2541.14,0.00013972,2]
[346559265,1735086653476,-3018.19,0.00013972,2]
[346559266,1735086653485,-500.0,0.00013972,2]
[346559267,1735086653495,-5201.64,0.00013972,2]
[346559268,1735086653504,-1474.94,0.00013972,2]
[346559269,1735086653516,-500.0,0.00013972,2]
[346559270,1735086653526,-500.0,0.00013972,2]
[346559271,1735086653535,-1544.45,0.00013972,2]
[346559272,1735086653545,-500.0,0.00013972,2]
[346559273,1735086653555,-500.0,0.00013972,2]
[346559274,1735086653565,-500.0,0.00013972,2]
[346559275,1735086653574,-500.0,0.00013972,2]
[346559276,1735086653584,-1179.54,0.00013972,2]
[346559277,1735086653594,-500.0,0.00013972,2]
[346559278,1735086653603,-500.0,0.00013972,2]
[346559279,1735086653611,-608.9,0.00013972,2]
[346559280,1735086653620,-2020.69,0.00013972,2]
[346559281,1735086653630,-500.0,0.00013972,2]
[346559282,1735086653639,-1938.54,0.00013972,2]
[346559283,1735086653885,-1572.38,0.00013972,2]
[346559284,1735086653901,-562.06,0.00013972,2]
[346559285,1735086653923,-500.0,0.00013972,2]
[346559286,1735086653936,-705.88,0.00013972,2]
[346559287,1735086653946,-500.0,0.00013972,2]
[346559288,1735086653955,-1505.03,0.00013972,2]
[346559289,1735086653965,-500.0,0.00013972,2]
[346559290,1735086653975,-3405.95,0.00013972,2]
[346559291,1735086653984,-500.0,0.00013972,2]
[346559292,1735086653993,-500.0,0.00013972,2]
[346559293,1735086654003,-500.0,0.00013972,2]
[346559294,1735086654012,-500.0,0.00013972,2]
[346559295,1735086654024,-500.0,0.00013972,2]
[346559296,1735086654033,-500.0,0.00013972,2]
[346559297,1735086654042,-28256.81,0.00013972,2]
[346559298,1735086654051,-500.0,0.00013972,2]
[346559299,1735086654064,-947.28,0.00013972,2]
[346559300,1735086654073,-3679.55,0.00013972,2]
[346559301,1735086654083,-500.0,0.00013972,2]
[346559302,1735086654091,-967.1,0.00013972,2]
[346559303,1735086654102,-539.23145483,0.00013972,2]
[346559304,1735086654111,-500.0,0.00013972,2]
[346559305,1735086654120,-500.0,0.00013972,2]
[346559306,1735086654131,-752.95,0.00013972,2]
[346559307,1735086654140,-3411.45,0.00013972,2]
[346559308,1735086654150,-500.0,0.00013972,2]
[346559309,1735086654159,-500.0,0.00013972,2]
[346559310,1735086654168,-500.0,0.00013972,2]
[346559311,1735086654178,-500.0,0.00013972,2]
[346559312,1735086654188,-20034.05,0.00013972,2]
[346559313,1735086654198,-1668.07,0.00013972,2]
[346559314,1735086654207,-500.0,0.00013972,2]
[346559315,1735086654216,-500.0,0.00013972,2]
[346559316,1735086654226,-500.0,0.00013972,2]
[346559317,1735086654235,-2035.97,0.00013972,2]
[346559318,1735086654244,-500.0,0.00013972,2]
[346559319,1735086654254,-1109.13,0.00013972,2]
[346559320,1735086654263,-3753.53,0.00013972,2]
[346559321,1735086654273,-10260.78,0.00013972,2]